[Event "Titled Tuesday Blitz May 16 Early 2023"]
[White "Boyer, Mahel"]
[Black "Pacan-Milej, Kosma"]
[WhiteFideId "45102422"]
[BlackFideId "21800537"]
[WhiteElo "2439"]
[BlackElo "2302"]
[Result "0-1"]
[Round "05"]
[TimeControl "180+2"]
[Date "2023.05.16"]
[WhiteClock "0:00:17"]
[BlackClock "0:00:41"]

1. Nf3 {[%clk 0:03:00]}  Nf6 {[%clk 0:02:56]} 2. g3 {[%clk 0:02:53]}  g6 {[%clk 0:02:57]} 3. Bg2 {[%clk 0:02:53]}  Bg7 {[%clk 0:02:57]} 4. O-O {[%clk 0:02:53]}  O-O {[%clk 0:02:58]} 5. d4 {[%clk 0:02:50]}  d6 {[%clk 0:02:59]} 6. a4 {[%clk 0:02:47]}  a5 {[%clk 0:02:55]} 7. b3 {[%clk 0:02:45]}  Nc6 {[%clk 0:02:52]} 8. Bb2 {[%clk 0:02:44]}  Qe8 {[%clk 0:02:45]} 9. Na3 {[%clk 0:02:31]}  e5 {[%clk 0:02:42]} 10. dxe5 {[%clk 0:02:29]}  Ng4 {[%clk 0:02:37]} 11. Nb5 {[%clk 0:02:28]}  Qd8 {[%clk 0:02:30]} 12. Qd2 {[%clk 0:01:39]}  Ngxe5 {[%clk 0:02:26]} 13. Nxe5 {[%clk 0:01:39]}  Nxe5 {[%clk 0:02:27]} 14. Rad1 {[%clk 0:01:40]}  Re8 {[%clk 0:02:10]} 15. c4 {[%clk 0:01:39]}  Qe7 {[%clk 0:01:36]} 16. Rfe1 {[%clk 0:01:28]}  Nc6 {[%clk 0:01:23]} 17. Bxg7 {[%clk 0:01:20]}  Kxg7 {[%clk 0:01:24]} 18. Qc3+ {[%clk 0:01:19]}  f6 {[%clk 0:01:19]} 19. Rd3 {[%clk 0:01:07]}  Bf5 {[%clk 0:01:10]} 20. Re3 {[%clk 0:01:07]}  Qd7 {[%clk 0:01:08]} 21. Rd1 {[%clk 0:01:00]}  Rxe3 {[%clk 0:01:06]} 22. Qxe3 {[%clk 0:01:00]}  Re8 {[%clk 0:01:07]} 23. Qd2 {[%clk 0:00:57]}  Re7 {[%clk 0:01:00]} 24. e3 {[%clk 0:00:33]}  Bg4 {[%clk 0:00:56]} 25. f3 {[%clk 0:00:33]}  Bh3 {[%clk 0:00:55]} 26. e4 {[%clk 0:00:30]}  Bxg2 {[%clk 0:00:51]} 27. Kxg2 {[%clk 0:00:30]}  f5 {[%clk 0:00:42]} 28. exf5 {[%clk 0:00:26]}  Qxf5 {[%clk 0:00:43]} 29. Qb2+ {[%clk 0:00:19]}  Qf6 {[%clk 0:00:41]} 30. Rd5 {[%clk 0:00:17]}  Qxb2+ {[%clk 0:00:41]} 0-1


[Site "https://www.chess.com"]

[Event "Titled Tuesday Blitz May 16 Early 2023"]
[White "Gheorghiu, Calin"]
[Black "Kravtsiv, Martyn"]
[WhiteFideId "1200305"]
[BlackFideId "14113147"]
[WhiteElo "2223"]
[BlackElo "2695"]
[Result "0-1"]
[Round "05"]
[TimeControl "180+2"]
[Date "2023.05.16"]
[WhiteClock "0:00:00"]
[BlackClock "0:01:21"]

1. e4 {[%clk 0:03:00]}  c5 {[%clk 0:02:55]} 2. Nf3 {[%clk 0:03:00]}  e6 {[%clk 0:02:55]} 3. g3 {[%clk 0:02:58]}  Nc6 {[%clk 0:02:54]} 4. Bg2 {[%clk 0:02:57]}  Nf6 {[%clk 0:02:53]} 5. Qe2 {[%clk 0:02:56]}  Be7 {[%clk 0:02:48]} 6. O-O {[%clk 0:02:56]}  O-O {[%clk 0:02:47]} 7. e5 {[%clk 0:02:49]}  Nd5 {[%clk 0:02:47]} 8. c3 {[%clk 0:02:49]}  d6 {[%clk 0:02:43]} 9. d4 {[%clk 0:02:48]}  b6 {[%clk 0:02:35]} 10. Na3 {[%clk 0:02:42]}  cxd4 {[%clk 0:02:31]} 11. cxd4 {[%clk 0:02:38]}  a5 {[%clk 0:02:27]} 12. Nb5 {[%clk 0:02:10]}  Ba6 {[%clk 0:02:28]} 13. a4 {[%clk 0:02:10]}  Rc8 {[%clk 0:02:27]} 14. exd6 {[%clk 0:01:49]}  Bxd6 {[%clk 0:02:26]} 15. Bg5 {[%clk 0:01:49]}  Qd7 {[%clk 0:02:24]} 16. Rac1 {[%clk 0:01:43]}  h6 {[%clk 0:02:22]} 17. Bd2 {[%clk 0:01:38]}  Na7 {[%clk 0:02:19]} 18. Ne5 {[%clk 0:01:02]}  Bxe5 {[%clk 0:02:19]} 19. Qxe5 {[%clk 0:01:01]}  Bxb5 {[%clk 0:02:19]} 20. axb5 {[%clk 0:01:00]}  Qxb5 {[%clk 0:02:20]} 21. Be4 {[%clk 0:00:33]}  Qxb2 {[%clk 0:01:55]} 22. Rxc8 {[%clk 0:00:30]}  Rxc8 {[%clk 0:01:52]} 23. Rd1 {[%clk 0:00:08]}  Nc6 {[%clk 0:01:40]} 24. Qh5 {[%clk 0:00:07]}  Qxd4 {[%clk 0:01:38]} 25. Bb1 {[%clk 0:00:03]}  Nf6 {[%clk 0:01:34]} 26. Qb5 {[%clk 0:00:02]}  Ne5 {[%clk 0:01:23]} 27. Qa6 {[%clk 0:00:00]}  Rd8 {[%clk 0:01:21]} 0-1


[Site "https://www.chess.com"]

[Event "Titled Tuesday Blitz May 16 Early 2023"]
[White "Hambleton, Aman"]
[Black "HamedWafa4"]
[WhiteFideId "2606577"]
[WhiteElo "2511"]
[BlackElo "2593"]
[Result "1/2-1/2"]
[Round "05"]
[TimeControl "180+2"]
[Date "2023.05.16"]
[WhiteClock "0:00:05"]
[BlackClock "0:00:05"]

1. d4 {[%clk 0:03:00]}  Nf6 {[%clk 0:02:54]} 2. c4 {[%clk 0:03:00]}  e6 {[%clk 0:02:48]} 3. Nc3 {[%clk 0:02:54]}  Bb4 {[%clk 0:02:48]} 4. Qc2 {[%clk 0:02:50]}  O-O {[%clk 0:02:45]} 5. Nf3 {[%clk 0:02:47]}  d6 {[%clk 0:02:44]} 6. a3 {[%clk 0:02:46]}  Bxc3+ {[%clk 0:02:37]} 7. Qxc3 {[%clk 0:02:47]}  b6 {[%clk 0:02:37]} 8. g3 {[%clk 0:02:38]}  Bb7 {[%clk 0:02:36]} 9. Bg2 {[%clk 0:02:35]}  Nbd7 {[%clk 0:02:35]} 10. O-O {[%clk 0:02:34]}  c5 {[%clk 0:02:33]} 11. dxc5 {[%clk 0:01:39]}  dxc5 {[%clk 0:02:26]} 12. b3 {[%clk 0:01:29]}  Qe7 {[%clk 0:02:19]} 13. Rd1 {[%clk 0:01:18]}  Rfd8 {[%clk 0:02:17]} 14. Bb2 {[%clk 0:01:18]}  h6 {[%clk 0:02:12]} 15. Rd3 {[%clk 0:00:53]}  Be4 {[%clk 0:01:59]} 16. Rd2 {[%clk 0:00:44]}  Nf8 {[%clk 0:01:55]} 17. Rad1 {[%clk 0:00:36]}  Ng6 {[%clk 0:01:54]} 18. Ne5 {[%clk 0:00:11]}  Rxd2 {[%clk 0:01:49]} 19. Rxd2 {[%clk 0:00:03]}  Nxe5 {[%clk 0:01:41]} 20. Bxe4 {[%clk 0:00:03]}  Nxe4 {[%clk 0:01:39]} 21. Qxe5 {[%clk 0:00:03]}  Nf6 {[%clk 0:01:39]} 22. Qd6 {[%clk 0:00:02]}  Qxd6 {[%clk 0:01:27]} 23. Rxd6 {[%clk 0:00:03]}  Kf8 {[%clk 0:01:28]} 24. Bxf6 {[%clk 0:00:04]}  gxf6 {[%clk 0:01:29]} 25. Rd7 {[%clk 0:00:04]}  Ke8 {[%clk 0:01:28]} 26. Rb7 {[%clk 0:00:04]}  Rd8 {[%clk 0:01:25]} 27. Rxa7 {[%clk 0:00:02]}  Rd1+ {[%clk 0:01:23]} 28. Kg2 {[%clk 0:00:02]}  Rb1 {[%clk 0:01:24]} 29. Ra6 {[%clk 0:00:01]}  Rxb3 {[%clk 0:01:24]} 30. a4 {[%clk 0:00:01]}  Rb4 {[%clk 0:01:24]} 31. a5 {[%clk 0:00:02]}  bxa5 {[%clk 0:01:23]} 32. Rxa5 {[%clk 0:00:02]}  Rxc4 {[%clk 0:01:24]} 33. Ra7 {[%clk 0:00:03]}  Kf8 {[%clk 0:01:23]} 34. e3 {[%clk 0:00:03]}  f5 {[%clk 0:01:24]} 35. Kh3 {[%clk 0:00:03]}  Kg7 {[%clk 0:01:24]} 36. Kg2 {[%clk 0:00:03]}  Rc2 {[%clk 0:01:24]} 37. Kf3 {[%clk 0:00:04]}  Kg6 {[%clk 0:01:24]} 38. Rc7 {[%clk 0:00:05]}  c4 {[%clk 0:01:24]} 39. h3 {[%clk 0:00:05]}  Rc1 {[%clk 0:01:24]} 40. Rc6 {[%clk 0:00:04]}  c3 {[%clk 0:01:24]} 41. Ke2 {[%clk 0:00:04]}  Kf6 {[%clk 0:01:24]} 42. Kd3 {[%clk 0:00:04]}  Rd1+ {[%clk 0:01:23]} 43. Ke2 {[%clk 0:00:02]}  Rd2+ {[%clk 0:01:23]} 44. Ke1 {[%clk 0:00:01]}  Rc2 {[%clk 0:01:23]} 45. Kf1 {[%clk 0:00:01]}  Ke5 {[%clk 0:01:21]} 46. Rc7 {[%clk 0:00:01]}  Kd6 {[%clk 0:01:19]} 47. Rc8 {[%clk 0:00:01]}  Rc1+ {[%clk 0:01:19]} 48. Ke2 {[%clk 0:00:01]}  Rc2+ {[%clk 0:01:18]} 49. Kf3 {[%clk 0:00:01]}  Kd5 {[%clk 0:01:14]} 50. g4 {[%clk 0:00:02]}  fxg4+ {[%clk 0:01:14]} 51. hxg4 {[%clk 0:00:03]}  Rc1 {[%clk 0:01:13]} 52. Ke2 {[%clk 0:00:03]}  Ke5 {[%clk 0:01:12]} 53. Kd3 {[%clk 0:00:02]}  Rd1+ {[%clk 0:00:55]} 54. Ke2 {[%clk 0:00:03]}  Rd2+ {[%clk 0:00:56]} 55. Kf3 {[%clk 0:00:03]}  Rc2 {[%clk 0:00:56]} 56. Rc7 {[%clk 0:00:02]}  Kf6 {[%clk 0:00:52]} 57. Kg3 {[%clk 0:00:02]}  Kg6 {[%clk 0:00:51]} 58. Kf3 {[%clk 0:00:02]}  Rc1 {[%clk 0:00:51]} 59. Rc6 {[%clk 0:00:01]}  Kg5 {[%clk 0:00:48]} 60. Rc5+ {[%clk 0:00:02]}  Kg6 {[%clk 0:00:46]} 61. Rc6 {[%clk 0:00:02]}  Rc2 {[%clk 0:00:45]} 62. Kg3 {[%clk 0:00:01]}  Kf6 {[%clk 0:00:41]} 63. Rc7 {[%clk 0:00:02]}  Rc1 {[%clk 0:00:41]} 64. Kf3 {[%clk 0:00:02]}  e5 {[%clk 0:00:37]} 65. Rc6+ {[%clk 0:00:02]}  Kg5 {[%clk 0:00:36]} 66. Rc5 {[%clk 0:00:02]}  f6 {[%clk 0:00:36]} 67. Rc4 {[%clk 0:00:01]}  c2 {[%clk 0:00:28]} 68. Rc8 {[%clk 0:00:01]}  e4+ {[%clk 0:00:20]} 69. Kxe4 {[%clk 0:00:01]}  Kxg4 {[%clk 0:00:21]} 70. Rg8+ {[%clk 0:00:01]}  Kh5 {[%clk 0:00:21]} 71. Rc8 {[%clk 0:00:02]}  Kh4 {[%clk 0:00:18]} 72. Kf5 {[%clk 0:00:02]}  h5 {[%clk 0:00:15]} 73. e4 {[%clk 0:00:02]}  Kh3 {[%clk 0:00:13]} 74. f4 {[%clk 0:00:02]}  Kg3 {[%clk 0:00:12]} 75. Kxf6 {[%clk 0:00:02]}  Kxf4 {[%clk 0:00:12]} 76. e5 {[%clk 0:00:03]}  Ke3 {[%clk 0:00:07]} 77. e6 {[%clk 0:00:03]}  Kd3 {[%clk 0:00:08]} 78. e7 {[%clk 0:00:03]}  Rf1+ {[%clk 0:00:07]} 79. Kg5 {[%clk 0:00:02]}  Re1 {[%clk 0:00:07]} 80. Kf6 {[%clk 0:00:02]}  Kd2 {[%clk 0:00:04]} 81. Rd8+ {[%clk 0:00:02]}  Kc1 {[%clk 0:00:04]} 82. e8=Q {[%clk 0:00:02]}  Rxe8 {[%clk 0:00:03]} 83. Rxe8 {[%clk 0:00:03]}  Kb1 {[%clk 0:00:04]} 84. Rb8+ {[%clk 0:00:03]}  Ka2 {[%clk 0:00:04]} 85. Rc8 {[%clk 0:00:03]}  Kb2 {[%clk 0:00:05]} 86. Rb8+ {[%clk 0:00:04]}  Ka2 {[%clk 0:00:05]} 87. Rc8 {[%clk 0:00:04]}  Kb2 {[%clk 0:00:05]} 88. Rb8+ {[%clk 0:00:05]}  Ka2 {[%clk 0:00:05]} 1/2-1/2


[Site "https://www.chess.com"]

[Event "Titled Tuesday Blitz May 16 Early 2023"]
[White "Nikologorskiy, Konstantin"]
[Black "Hayrapetyan, Hovik"]
[WhiteFideId "24111708"]
[BlackFideId "13302639"]
[WhiteElo "2273"]
[BlackElo "2348"]
[Result "1-0"]
[Round "05"]
[TimeControl "180+2"]
[Date "2023.05.16"]
[WhiteClock "0:00:24"]
[BlackClock "0:00:00"]

1. d4 {[%clk 0:02:56]}  Nf6 {[%clk 0:02:59]} 2. c4 {[%clk 0:02:56]}  e6 {[%clk 0:02:59]} 3. Nf3 {[%clk 0:02:57]}  d5 {[%clk 0:02:53]} 4. g3 {[%clk 0:02:56]}  Be7 {[%clk 0:02:52]} 5. Bg2 {[%clk 0:02:56]}  O-O {[%clk 0:02:52]} 6. O-O {[%clk 0:02:56]}  dxc4 {[%clk 0:02:51]} 7. Qc2 {[%clk 0:02:55]}  a6 {[%clk 0:02:50]} 8. Qxc4 {[%clk 0:02:54]}  b5 {[%clk 0:02:50]} 9. Qc2 {[%clk 0:02:55]}  Bb7 {[%clk 0:02:50]} 10. Bg5 {[%clk 0:02:55]}  Nbd7 {[%clk 0:02:28]} 11. Bxf6 {[%clk 0:02:52]}  Nxf6 {[%clk 0:02:29]} 12. Nbd2 {[%clk 0:02:52]}  Rc8 {[%clk 0:02:25]} 13. Nb3 {[%clk 0:02:52]}  Be4 {[%clk 0:02:23]} 14. Qc1 {[%clk 0:02:49]}  c5 {[%clk 0:01:47]} 15. dxc5 {[%clk 0:02:48]}  Nd7 {[%clk 0:01:45]} 16. Qf4 {[%clk 0:02:34]}  Bd5 {[%clk 0:01:44]} 17. Rfd1 {[%clk 0:02:22]}  Qc7 {[%clk 0:01:27]} 18. e4 {[%clk 0:01:44]}  Bxb3 {[%clk 0:01:25]} 19. Qxc7 {[%clk 0:01:36]}  Rxc7 {[%clk 0:01:25]} 20. axb3 {[%clk 0:01:36]}  Nxc5 {[%clk 0:01:25]} 21. Nd4 {[%clk 0:01:31]}  Bf6 {[%clk 0:01:17]} 22. Rac1 {[%clk 0:00:45]}  Rd8 {[%clk 0:00:58]} 23. e5 {[%clk 0:00:36]}  Be7 {[%clk 0:00:20]} 24. b4 {[%clk 0:00:30]}  Rcd7 {[%clk 0:00:03]} 25. bxc5 {[%clk 0:00:27]}  Rxd4 {[%clk 0:00:02]} 26. Rxd4 {[%clk 0:00:28]}  Rxd4 {[%clk 0:00:03]} 27. c6 {[%clk 0:00:29]}  Bd8 {[%clk 0:00:02]} 28. c7 {[%clk 0:00:28]}  Bxc7 {[%clk 0:00:03]} 29. Rxc7 {[%clk 0:00:29]}  Rd1+ {[%clk 0:00:03]} 30. Bf1 {[%clk 0:00:29]}  g5 {[%clk 0:00:03]} 31. Ra7 {[%clk 0:00:29]}  Ra1 {[%clk 0:00:02]} 32. Kg2 {[%clk 0:00:30]}  Ra2 {[%clk 0:00:02]} 33. Bxb5 {[%clk 0:00:29]}  Rxb2 {[%clk 0:00:03]} 34. Bxa6 {[%clk 0:00:29]}  Ra2 {[%clk 0:00:03]} 35. Ra8+ {[%clk 0:00:29]}  Kg7 {[%clk 0:00:04]} 36. Bb7 {[%clk 0:00:30]}  Re2 {[%clk 0:00:04]} 37. Ra5 {[%clk 0:00:28]}  g4 {[%clk 0:00:03]} 38. Ra4 {[%clk 0:00:25]}  h5 {[%clk 0:00:04]} 39. Re4 {[%clk 0:00:26]}  Rb2 {[%clk 0:00:04]} 40. Bc6 {[%clk 0:00:25]}  Rc2 {[%clk 0:00:04]} 41. Ba4 {[%clk 0:00:24]}  Rc5 {[%clk 0:00:05]} 42. h3 {[%clk 0:00:24]}  gxh3+ {[%clk 0:00:04]} 43. Kxh3 {[%clk 0:00:25]}  Kg6 {[%clk 0:00:04]} 44. Bd1 {[%clk 0:00:25]}  Kg5 {[%clk 0:00:01]} 45. Rh4 {[%clk 0:00:24]}  Kg6 {[%clk 0:00:01]} 46. Bxh5+ {[%clk 0:00:24]}  Kg7 {[%clk 0:00:01]} 47. f4 {[%clk 0:00:23]}  Rc3 {[%clk 0:00:00]} 48. Bg4 {[%clk 0:00:24]} 1-0


[Site "https://www.chess.com"]

[Event "Titled Tuesday Blitz May 16 Early 2023"]
[White "Ibadov, Dashgyn"]
[Black "Fernandez Guillen, Ernesto J."]
[WhiteFideId "24107514"]
[BlackFideId "3512428"]
[WhiteElo "2208"]
[BlackElo "2429"]
[Result "0-1"]
[Round "05"]
[TimeControl "180+2"]
[Date "2023.05.16"]
[WhiteClock "0:00:00"]
[BlackClock "0:00:42"]

1. e4 {[%clk 0:03:00]}  e5 {[%clk 0:02:57]} 2. Nf3 {[%clk 0:03:00]}  Nc6 {[%clk 0:02:52]} 3. d4 {[%clk 0:03:00]}  exd4 {[%clk 0:02:53]} 4. Nxd4 {[%clk 0:03:01]}  g6 {[%clk 0:02:53]} 5. Nc3 {[%clk 0:02:59]}  Bg7 {[%clk 0:02:53]} 6. Be3 {[%clk 0:02:59]}  Nge7 {[%clk 0:02:53]} 7. Qd2 {[%clk 0:02:58]}  O-O {[%clk 0:02:52]} 8. O-O-O {[%clk 0:02:55]}  d5 {[%clk 0:02:47]} 9. Nxc6 {[%clk 0:02:31]}  bxc6 {[%clk 0:02:46]} 10. Bh6 {[%clk 0:02:26]}  Be6 {[%clk 0:02:41]} 11. h4 {[%clk 0:02:21]}  dxe4 {[%clk 0:02:33]} 12. Qg5 {[%clk 0:02:05]}  Nd5 {[%clk 0:02:28]} 13. Bxg7 {[%clk 0:01:54]}  Qxg5+ {[%clk 0:02:08]} 14. hxg5 {[%clk 0:01:54]}  Kxg7 {[%clk 0:02:08]} 15. Nxe4 {[%clk 0:01:54]}  Rad8 {[%clk 0:02:02]} 16. Be2 {[%clk 0:01:32]}  Nf4 {[%clk 0:01:45]} 17. Bf3 {[%clk 0:01:26]}  Bd5 {[%clk 0:01:46]} 18. Nf6 {[%clk 0:01:21]}  h5 {[%clk 0:01:44]} 19. Nxd5 {[%clk 0:01:15]}  cxd5 {[%clk 0:01:41]} 20. g3 {[%clk 0:01:15]}  Ne6 {[%clk 0:01:42]} 21. Bxd5 {[%clk 0:01:12]}  Nxg5 {[%clk 0:01:41]} 22. f4 {[%clk 0:01:12]}  Nh7 {[%clk 0:01:42]} 23. Bf3 {[%clk 0:01:07]}  Nf6 {[%clk 0:01:27]} 24. Rxd8 {[%clk 0:01:03]}  Rxd8 {[%clk 0:01:28]} 25. Rd1 {[%clk 0:01:03]}  Rh8 {[%clk 0:01:29]} 26. Kd2 {[%clk 0:01:00]}  h4 {[%clk 0:01:28]} 27. gxh4 {[%clk 0:00:55]}  Rxh4 {[%clk 0:01:29]} 28. Ke3 {[%clk 0:00:56]}  Rh2 {[%clk 0:01:24]} 29. Rd2 {[%clk 0:00:53]}  Rh8 {[%clk 0:01:11]} 30. c4 {[%clk 0:00:50]}  Re8+ {[%clk 0:01:02]} 31. Kf2 {[%clk 0:00:44]}  Ne4+ {[%clk 0:01:00]} 32. Bxe4 {[%clk 0:00:40]}  Rxe4 {[%clk 0:01:01]} 33. Kf3 {[%clk 0:00:36]}  Rxc4 {[%clk 0:01:01]} 34. b3 {[%clk 0:00:36]}  Rc3+ {[%clk 0:01:01]} 35. Ke4 {[%clk 0:00:35]}  Kf6 {[%clk 0:01:00]} 36. Rd5 {[%clk 0:00:28]}  Rc6 {[%clk 0:00:54]} 37. Ra5 {[%clk 0:00:27]}  a6 {[%clk 0:00:55]} 38. a3 {[%clk 0:00:19]}  Ke7 {[%clk 0:00:54]} 39. b4 {[%clk 0:00:18]}  f6 {[%clk 0:00:51]} 40. Kd5 {[%clk 0:00:08]}  Rd6+ {[%clk 0:00:51]} 41. Ke4 {[%clk 0:00:07]}  Re6+ {[%clk 0:00:49]} 42. Kd4 {[%clk 0:00:06]}  f5 {[%clk 0:00:42]} 43. b5 {[%clk 0:00:00]}  axb5 {[%clk 0:00:42]} 0-1


[Site "https://www.chess.com"]

[Event "Titled Tuesday Blitz May 16 Early 2023"]
[White "Csonka, Balazs"]
[Black "koncheto"]
[WhiteFideId "742910"]
[WhiteElo "2404"]
[BlackElo "2564"]
[Result "0-1"]
[Round "05"]
[TimeControl "180+2"]
[Date "2023.05.16"]
[WhiteClock "0:00:01"]
[BlackClock "0:00:02"]

1. c4 {[%clk 0:03:00]}  Nf6 {[%clk 0:02:56]} 2. g3 {[%clk 0:03:01]}  e6 {[%clk 0:02:52]} 3. Bg2 {[%clk 0:03:00]}  c6 {[%clk 0:02:52]} 4. Nf3 {[%clk 0:02:46]}  d5 {[%clk 0:02:52]} 5. O-O {[%clk 0:02:40]}  Be7 {[%clk 0:02:52]} 6. d4 {[%clk 0:02:32]}  O-O {[%clk 0:02:51]} 7. Nc3 {[%clk 0:02:33]}  Nbd7 {[%clk 0:02:51]} 8. b3 {[%clk 0:02:29]}  b6 {[%clk 0:02:52]} 9. Bb2 {[%clk 0:02:29]}  Bb7 {[%clk 0:02:52]} 10. Nd2 {[%clk 0:02:27]}  Rc8 {[%clk 0:02:51]} 11. e4 {[%clk 0:02:21]}  dxe4 {[%clk 0:02:52]} 12. Ndxe4 {[%clk 0:02:20]}  Nxe4 {[%clk 0:02:51]} 13. Nxe4 {[%clk 0:02:08]}  Nf6 {[%clk 0:02:52]} 14. Qc2 {[%clk 0:02:05]}  h6 {[%clk 0:02:46]} 15. Rad1 {[%clk 0:02:01]}  Nxe4 {[%clk 0:02:36]} 16. Bxe4 {[%clk 0:01:52]}  Bf6 {[%clk 0:02:37]} 17. c5 {[%clk 0:01:44]}  Qe7 {[%clk 0:02:24]} 18. b4 {[%clk 0:01:37]}  Rfd8 {[%clk 0:02:16]} 19. Rd2 {[%clk 0:01:09]}  a5 {[%clk 0:02:02]} 20. a3 {[%clk 0:01:04]}  axb4 {[%clk 0:02:01]} 21. axb4 {[%clk 0:01:04]}  bxc5 {[%clk 0:01:55]} 22. dxc5 {[%clk 0:00:53]}  Bxb2 {[%clk 0:01:20]} 23. Qxb2 {[%clk 0:00:52]}  Ba6 {[%clk 0:01:13]} 24. Rfd1 {[%clk 0:00:47]}  Rxd2 {[%clk 0:01:06]} 25. Qxd2 {[%clk 0:00:40]}  Bb5 {[%clk 0:00:35]} 26. Kg2 {[%clk 0:00:40]}  h5 {[%clk 0:00:33]} 27. h4 {[%clk 0:00:39]}  g6 {[%clk 0:00:34]} 28. Qf4 {[%clk 0:00:27]}  Ra8 {[%clk 0:00:16]} 29. Rd6 {[%clk 0:00:22]}  Ra4 {[%clk 0:00:11]} 30. Bxc6 {[%clk 0:00:21]}  Bxc6+ {[%clk 0:00:10]} 31. Rxc6 {[%clk 0:00:22]}  Qb7 {[%clk 0:00:10]} 32. Qc7 {[%clk 0:00:03]}  Qxb4 {[%clk 0:00:04]} 33. Qe5 {[%clk 0:00:02]}  Qb7 {[%clk 0:00:03]} 34. Qc7 {[%clk 0:00:02]}  Qb4 {[%clk 0:00:03]} 35. Kh2 {[%clk 0:00:02]}  Qd2 {[%clk 0:00:02]} 36. Kg2 {[%clk 0:00:01]}  Qd5+ {[%clk 0:00:02]} 37. Kh2 {[%clk 0:00:01]}  Ra1 {[%clk 0:00:02]} 38. Qb8+ {[%clk 0:00:01]}  Kh7 {[%clk 0:00:02]} 39. Rc8 {[%clk 0:00:01]}  Rh1# {[%clk 0:00:02]} 0-1


[Site "https://www.chess.com"]

[Event "Titled Tuesday Blitz May 16 Early 2023"]
[White "Gunina, Valentina"]
[Black "Kleiman, Jake"]
[WhiteFideId "4167570"]
[BlackFideId "2020041"]
[WhiteElo "2352"]
[BlackElo "2560"]
[Result "1-0"]
[Round "05"]
[TimeControl "180+2"]
[Date "2023.05.16"]
[WhiteClock "0:00:13"]
[BlackClock "0:00:03"]

1. d4 {[%clk 0:02:57]}  Nf6 {[%clk 0:03:00]} 2. c4 {[%clk 0:02:56]}  e6 {[%clk 0:03:00]} 3. Nf3 {[%clk 0:02:57]}  Bb4+ {[%clk 0:03:01]} 4. Bd2 {[%clk 0:02:57]}  Bxd2+ {[%clk 0:03:01]} 5. Qxd2 {[%clk 0:02:57]}  O-O {[%clk 0:03:02]} 6. Nc3 {[%clk 0:02:58]}  d5 {[%clk 0:03:03]} 7. e3 {[%clk 0:02:57]}  Qe7 {[%clk 0:03:02]} 8. Rc1 {[%clk 0:02:56]}  Rd8 {[%clk 0:03:02]} 9. Qc2 {[%clk 0:02:54]}  a6 {[%clk 0:03:02]} 10. cxd5 {[%clk 0:02:50]}  exd5 {[%clk 0:03:02]} 11. Be2 {[%clk 0:02:50]}  Nc6 {[%clk 0:03:00]} 12. O-O {[%clk 0:02:49]}  Bg4 {[%clk 0:02:58]} 13. Na4 {[%clk 0:02:38]}  Ne4 {[%clk 0:02:49]} 14. h3 {[%clk 0:02:18]}  Bf5 {[%clk 0:02:44]} 15. Qb3 {[%clk 0:01:54]}  Rab8 {[%clk 0:01:50]} 16. Nc5 {[%clk 0:01:52]}  Rd6 {[%clk 0:01:42]} 17. Nxe4 {[%clk 0:01:25]}  dxe4 {[%clk 0:01:29]} 18. Nh2 {[%clk 0:01:23]}  Rg6 {[%clk 0:00:51]} 19. Kh1 {[%clk 0:01:20]}  Qg5 {[%clk 0:00:29]} 20. Rg1 {[%clk 0:01:20]}  Qh4 {[%clk 0:00:27]} 21. Rc5 {[%clk 0:00:42]}  Bd7 {[%clk 0:00:13]} 22. Bg4 {[%clk 0:00:33]}  Bxg4 {[%clk 0:00:10]} 23. hxg4 {[%clk 0:00:29]}  Rxg4 {[%clk 0:00:10]} 24. Rxc6 {[%clk 0:00:27]}  Rg5 {[%clk 0:00:08]} 25. Rxc7 {[%clk 0:00:25]}  Rf8 {[%clk 0:00:06]} 26. Rc5 {[%clk 0:00:25]}  Rxc5 {[%clk 0:00:04]} 27. dxc5 {[%clk 0:00:25]}  Qxf2 {[%clk 0:00:05]} 28. Rd1 {[%clk 0:00:23]}  h5 {[%clk 0:00:04]} 29. Rf1 {[%clk 0:00:22]}  Qe2 {[%clk 0:00:04]} 30. Qd1 {[%clk 0:00:20]}  Qxe3 {[%clk 0:00:04]} 31. Qxh5 {[%clk 0:00:20]}  Qd3 {[%clk 0:00:04]} 32. Qf5 {[%clk 0:00:17]}  Qc4 {[%clk 0:00:03]} 33. Ng4 {[%clk 0:00:16]}  Qxa2 {[%clk 0:00:03]} 34. Rf4 {[%clk 0:00:16]}  Qxb2 {[%clk 0:00:03]} 35. Qxe4 {[%clk 0:00:13]}  Qc1+ {[%clk 0:00:02]} 36. Kh2 {[%clk 0:00:14]}  Qxc5 {[%clk 0:00:03]} 37. Nf6+ {[%clk 0:00:13]}  gxf6 {[%clk 0:00:02]} 38. Rg4+ {[%clk 0:00:13]}  Kh8 {[%clk 0:00:02]} 39. Rh4+ {[%clk 0:00:12]}  Kg7 {[%clk 0:00:03]} 40. Qh7# {[%clk 0:00:13]} 1-0


[Site "https://www.chess.com"]

[Event "Titled Tuesday Blitz May 16 Early 2023"]
[White "Tatarinov, Dmitry"]
[Black "OPQRC"]
[WhiteFideId "24160067"]
[WhiteElo "2326"]
[BlackElo "2553"]
[Result "1-0"]
[Round "05"]
[TimeControl "180+2"]
[Date "2023.05.16"]
[WhiteClock "0:00:46"]
[BlackClock "0:00:00"]

1. d4 {[%clk 0:03:00]}  Nf6 {[%clk 0:02:58]} 2. c4 {[%clk 0:03:01]}  e6 {[%clk 0:02:56]} 3. Nf3 {[%clk 0:03:01]}  d5 {[%clk 0:02:56]} 4. Nc3 {[%clk 0:03:01]}  c5 {[%clk 0:02:56]} 5. cxd5 {[%clk 0:03:01]}  Nxd5 {[%clk 0:02:57]} 6. e4 {[%clk 0:02:59]}  Nxc3 {[%clk 0:02:57]} 7. bxc3 {[%clk 0:02:59]}  cxd4 {[%clk 0:02:58]} 8. cxd4 {[%clk 0:03:00]}  Bb4+ {[%clk 0:02:59]} 9. Bd2 {[%clk 0:03:00]}  Bxd2+ {[%clk 0:02:59]} 10. Qxd2 {[%clk 0:03:01]}  O-O {[%clk 0:03:00]} 11. Bc4 {[%clk 0:03:02]}  Nd7 {[%clk 0:03:00]} 12. O-O {[%clk 0:03:02]}  b6 {[%clk 0:03:01]} 13. d5 {[%clk 0:03:01]}  exd5 {[%clk 0:02:52]} 14. Bxd5 {[%clk 0:03:01]}  Rb8 {[%clk 0:02:51]} 15. Qf4 {[%clk 0:02:52]}  Ba6 {[%clk 0:02:29]} 16. Rfd1 {[%clk 0:02:51]}  Be2 {[%clk 0:02:03]} 17. Rd2 {[%clk 0:02:47]}  Bxf3 {[%clk 0:02:03]} 18. Qxf3 {[%clk 0:02:47]}  Qe7 {[%clk 0:01:59]} 19. Rad1 {[%clk 0:02:46]}  Ne5 {[%clk 0:01:55]} 20. Qg3 {[%clk 0:02:43]}  Rbc8 {[%clk 0:01:51]} 21. h3 {[%clk 0:02:39]}  h6 {[%clk 0:01:48]} 22. Bb3 {[%clk 0:02:36]}  Nc4 {[%clk 0:01:32]} 23. Rd4 {[%clk 0:02:27]}  Ne5 {[%clk 0:01:29]} 24. Qf4 {[%clk 0:01:53]}  a5 {[%clk 0:01:07]} 25. Rd5 {[%clk 0:01:46]}  Ng6 {[%clk 0:01:00]} 26. Qe3 {[%clk 0:01:46]}  Rb8 {[%clk 0:00:36]} 27. f4 {[%clk 0:01:39]}  b5 {[%clk 0:00:34]} 28. e5 {[%clk 0:01:32]}  Qh4 {[%clk 0:00:31]} 29. f5 {[%clk 0:01:29]}  Ne7 {[%clk 0:00:23]} 30. R5d4 {[%clk 0:01:24]}  Qh5 {[%clk 0:00:19]} 31. g4 {[%clk 0:01:23]}  Qh4 {[%clk 0:00:18]} 32. Rd7 {[%clk 0:01:23]}  Nc6 {[%clk 0:00:14]} 33. R1d6 {[%clk 0:01:20]}  Rbc8 {[%clk 0:00:09]} 34. Kg2 {[%clk 0:01:14]}  Nb4 {[%clk 0:00:09]} 35. Qg3 {[%clk 0:01:06]}  Qg5 {[%clk 0:00:09]} 36. h4 {[%clk 0:01:05]}  Qc1 {[%clk 0:00:09]} 37. Rd1 {[%clk 0:00:56]}  Qc6+ {[%clk 0:00:08]} 38. Qf3 {[%clk 0:00:50]}  Qxf3+ {[%clk 0:00:06]} 39. Kxf3 {[%clk 0:00:51]}  a4 {[%clk 0:00:07]} 40. Bd5 {[%clk 0:00:51]}  Rc3+ {[%clk 0:00:06]} 41. Kf4 {[%clk 0:00:49]}  Nxd5+ {[%clk 0:00:02]} 42. R1xd5 {[%clk 0:00:49]}  Rfc8 {[%clk 0:00:03]} 43. Rd8+ {[%clk 0:00:46]}  Rxd8 {[%clk 0:00:03]} 44. Rxd8+ {[%clk 0:00:47]}  Kh7 {[%clk 0:00:04]} 45. e6 {[%clk 0:00:48]}  Rc4+ {[%clk 0:00:02]} 46. Ke5 {[%clk 0:00:46]}  fxe6 {[%clk 0:00:00]} 47. fxe6 {[%clk 0:00:46]} 1-0


[Site "https://www.chess.com"]